[Event "Titled Tuesday Blitz February 21 Early 2023"]
[White "Potapova, Margarita"]
[Black "Halkias, Stelios"]
[WhiteFideId "14126869"]
[BlackFideId "4201809"]
[WhiteElo "2104"]
[BlackElo "2511"]
[Result "0-1"]
[Round "07"]
[TimeControl "180+2"]
[Date "2023.02.21"]
[WhiteClock "0:00:15"]
[BlackClock "0:01:12"]

1. d4 {[%clk 0:03:00]}  Nf6 {[%clk 0:02:57]} 2. c4 {[%clk 0:02:59]}  g6 {[%clk 0:02:56]} 3. Nc3 {[%clk 0:02:59]}  Bg7 {[%clk 0:02:56]} 4. e4 {[%clk 0:03:00]}  d6 {[%clk 0:02:57]} 5. h3 {[%clk 0:03:00]}  O-O {[%clk 0:02:57]} 6. Be3 {[%clk 0:03:01]}  Nc6 {[%clk 0:02:57]} 7. d5 {[%clk 0:03:00]}  Ne5 {[%clk 0:02:57]} 8. f4 {[%clk 0:02:57]}  Ned7 {[%clk 0:02:57]} 9. Nf3 {[%clk 0:02:58]}  c6 {[%clk 0:02:58]} 10. Be2 {[%clk 0:02:58]}  cxd5 {[%clk 0:02:58]} 11. cxd5 {[%clk 0:02:58]}  b6 {[%clk 0:02:58]} 12. Nd4 {[%clk 0:02:56]}  Bb7 {[%clk 0:02:58]} 13. O-O {[%clk 0:02:52]}  Nc5 {[%clk 0:02:54]} 14. Bf3 {[%clk 0:02:42]}  Rc8 {[%clk 0:02:42]} 15. Nc6 {[%clk 0:02:41]}  Bxc6 {[%clk 0:02:42]} 16. dxc6 {[%clk 0:02:41]}  e5 {[%clk 0:02:37]} 17. Nd5 {[%clk 0:02:31]}  Rxc6 {[%clk 0:02:22]} 18. fxe5 {[%clk 0:02:24]}  dxe5 {[%clk 0:02:22]} 19. Bg5 {[%clk 0:02:20]}  Ne6 {[%clk 0:02:14]} 20. Qa4 {[%clk 0:01:48]}  Rd6 {[%clk 0:02:07]} 21. Bxf6 {[%clk 0:01:26]}  Bxf6 {[%clk 0:02:07]} 22. Qxa7 {[%clk 0:01:26]}  Nd4 {[%clk 0:02:06]} 23. Rac1 {[%clk 0:01:20]}  Bg5 {[%clk 0:01:57]} 24. Rc4 {[%clk 0:01:01]}  Rxd5 {[%clk 0:01:44]} 25. exd5 {[%clk 0:01:01]}  Be3+ {[%clk 0:01:44]} 26. Kh1 {[%clk 0:01:00]}  Nf5 {[%clk 0:01:45]} 27. Rd1 {[%clk 0:00:53]}  b5 {[%clk 0:01:43]} 28. Qa3 {[%clk 0:00:38]}  bxc4 {[%clk 0:01:41]} 29. g4 {[%clk 0:00:39]}  Ng3+ {[%clk 0:01:39]} 30. Kg2 {[%clk 0:00:39]}  Bf4 {[%clk 0:01:39]} 31. d6 {[%clk 0:00:38]}  e4 {[%clk 0:01:39]} 32. d7 {[%clk 0:00:28]}  exf3+ {[%clk 0:01:37]} 33. Qxf3 {[%clk 0:00:29]}  Bc7 {[%clk 0:01:37]} 34. a4 {[%clk 0:00:24]}  Qe7 {[%clk 0:01:34]} 35. a5 {[%clk 0:00:19]}  Bxa5 {[%clk 0:01:14]} 36. Kxg3 {[%clk 0:00:16]}  Bc7+ {[%clk 0:01:12]} 37. Kg2 {[%clk 0:00:17]}  Rd8 {[%clk 0:01:12]} 38. Qc6 {[%clk 0:00:15]}  Qe2+ {[%clk 0:01:12]} 0-1


[Site "https://www.chess.com"]

[Event "Titled Tuesday Blitz February 21 Early 2023"]
[White "Shapiro, Viktor"]
[Black "Lagno, Kateryna"]
[WhiteFideId "4175700"]
[BlackFideId "14109336"]
[WhiteElo "2192"]
[BlackElo "2558"]
[Result "0-1"]
[Round "07"]
[TimeControl "180+2"]
[Date "2023.02.21"]
[WhiteClock "0:00:01"]
[BlackClock "0:00:20"]

1. c4 {[%clk 0:03:00]}  e5 {[%clk 0:02:58]} 2. Nc3 {[%clk 0:03:01]}  d6 {[%clk 0:02:56]} 3. g3 {[%clk 0:03:01]}  f5 {[%clk 0:02:54]} 4. Bg2 {[%clk 0:03:02]}  Nf6 {[%clk 0:02:53]} 5. d3 {[%clk 0:03:02]}  Be7 {[%clk 0:02:51]} 6. Rb1 {[%clk 0:03:02]}  a5 {[%clk 0:02:51]} 7. a3 {[%clk 0:03:03]}  O-O {[%clk 0:02:51]} 8. b4 {[%clk 0:03:03]}  axb4 {[%clk 0:02:50]} 9. axb4 {[%clk 0:03:03]}  c6 {[%clk 0:02:48]} 10. Nf3 {[%clk 0:03:02]}  Qe8 {[%clk 0:02:47]} 11. O-O {[%clk 0:02:52]}  Qh5 {[%clk 0:02:47]} 12. c5 {[%clk 0:02:49]}  Kh8 {[%clk 0:02:24]} 13. cxd6 {[%clk 0:02:32]}  Bxd6 {[%clk 0:02:25]} 14. b5 {[%clk 0:02:27]}  Be6 {[%clk 0:02:07]} 15. bxc6 {[%clk 0:02:27]}  bxc6 {[%clk 0:02:08]} 16. e4 {[%clk 0:02:24]}  fxe4 {[%clk 0:01:36]} 17. dxe4 {[%clk 0:02:24]}  Bc5 {[%clk 0:01:28]} 18. Ng5 {[%clk 0:01:57]}  Bc4 {[%clk 0:01:27]} 19. Bf3 {[%clk 0:01:45]}  Qg6 {[%clk 0:01:27]} 20. Be2 {[%clk 0:01:36]}  Bxe2 {[%clk 0:01:21]} 21. Qxe2 {[%clk 0:01:36]}  Bd4 {[%clk 0:01:19]} 22. Rb3 {[%clk 0:01:21]}  Nfd7 {[%clk 0:01:11]} 23. Nf3 {[%clk 0:01:03]}  Nc5 {[%clk 0:01:11]} 24. Ra3 {[%clk 0:00:54]}  Nbd7 {[%clk 0:01:07]} 25. Rxa8 {[%clk 0:00:52]}  Rxa8 {[%clk 0:01:08]} 26. Bb2 {[%clk 0:00:40]}  Bxc3 {[%clk 0:00:57]} 27. Bxc3 {[%clk 0:00:40]}  Nxe4 {[%clk 0:00:57]} 28. Nxe5 {[%clk 0:00:38]}  Qf5 {[%clk 0:00:51]} 29. Nxd7 {[%clk 0:00:36]}  Nxc3 {[%clk 0:00:51]} 30. Qe7 {[%clk 0:00:36]}  Qf3 {[%clk 0:00:42]} 31. Re1 {[%clk 0:00:36]}  h6 {[%clk 0:00:40]} 32. Qe3 {[%clk 0:00:24]}  Qxe3 {[%clk 0:00:35]} 33. Rxe3 {[%clk 0:00:24]}  Nd5 {[%clk 0:00:35]} 34. Re6 {[%clk 0:00:24]}  Ra1+ {[%clk 0:00:33]} 35. Kg2 {[%clk 0:00:24]}  Rc1 {[%clk 0:00:34]} 36. Ne5 {[%clk 0:00:18]}  Nb4 {[%clk 0:00:31]} 37. Re8+ {[%clk 0:00:17]}  Kh7 {[%clk 0:00:31]} 38. Rb8 {[%clk 0:00:18]}  c5 {[%clk 0:00:31]} 39. Rb7 {[%clk 0:00:18]}  Nd5 {[%clk 0:00:26]} 40. Rd7 {[%clk 0:00:15]}  Nf6 {[%clk 0:00:24]} 41. Rc7 {[%clk 0:00:16]}  Rc2 {[%clk 0:00:23]} 42. Kf3 {[%clk 0:00:13]}  h5 {[%clk 0:00:23]} 43. h3 {[%clk 0:00:13]}  Kh6 {[%clk 0:00:24]} 44. g4 {[%clk 0:00:13]}  hxg4+ {[%clk 0:00:23]} 45. hxg4 {[%clk 0:00:14]}  Rc3+ {[%clk 0:00:21]} 46. Kg2 {[%clk 0:00:13]}  Nd5 {[%clk 0:00:21]} 47. Rc6+ {[%clk 0:00:13]}  Kg5 {[%clk 0:00:22]} 48. Rg6+ {[%clk 0:00:04]}  Kf4 {[%clk 0:00:22]} 49. Nd7 {[%clk 0:00:03]}  Rc2 {[%clk 0:00:20]} 50. Rxg7 {[%clk 0:00:03]}  Ne3+ {[%clk 0:00:20]} 51. Kg1 {[%clk 0:00:03]}  Nxg4 {[%clk 0:00:20]} 52. Rf7+ {[%clk 0:00:01]}  Kg5 {[%clk 0:00:20]} 0-1


[Site "https://www.chess.com"]

[Event "Titled Tuesday Blitz February 21 Early 2023"]
[White "Balla, Tamas-Kristof"]
[Black "Dehtiarov, Roman"]
[WhiteFideId "1208497"]
[BlackFideId "14186640"]
[WhiteElo "2303"]
[BlackElo "2289"]
[Result "0-1"]
[Round "07"]
[TimeControl "180+2"]
[Date "2023.02.21"]
[WhiteClock "0:00:08"]
[BlackClock "0:02:03"]

1. e4 {[%clk 0:03:00]}  e5 {[%clk 0:02:58]} 2. Nf3 {[%clk 0:02:58]}  Nc6 {[%clk 0:02:58]} 3. d4 {[%clk 0:02:58]}  exd4 {[%clk 0:02:59]} 4. Nxd4 {[%clk 0:02:59]}  Nf6 {[%clk 0:02:59]} 5. Nxc6 {[%clk 0:02:59]}  bxc6 {[%clk 0:03:00]} 6. e5 {[%clk 0:03:00]}  Nd5 {[%clk 0:03:00]} 7. c4 {[%clk 0:02:58]}  Bb4+ {[%clk 0:03:00]} 8. Bd2 {[%clk 0:02:55]}  Bxd2+ {[%clk 0:02:58]} 9. Qxd2 {[%clk 0:02:51]}  Nb6 {[%clk 0:02:58]} 10. Be2 {[%clk 0:02:38]}  Qe7 {[%clk 0:02:54]} 11. O-O {[%clk 0:01:56]}  O-O {[%clk 0:02:52]} 12. Qe3 {[%clk 0:01:45]}  d6 {[%clk 0:02:39]} 13. exd6 {[%clk 0:01:31]}  Qxe3 {[%clk 0:02:40]} 14. fxe3 {[%clk 0:01:32]}  cxd6 {[%clk 0:02:40]} 15. Nc3 {[%clk 0:01:27]}  Re8 {[%clk 0:02:37]} 16. Bf3 {[%clk 0:01:14]}  Bb7 {[%clk 0:02:32]} 17. c5 {[%clk 0:01:14]}  dxc5 {[%clk 0:02:26]} 18. Ne4 {[%clk 0:01:02]}  Re5 {[%clk 0:02:18]} 19. Rac1 {[%clk 0:00:50]}  c4 {[%clk 0:02:12]} 20. Nd6 {[%clk 0:00:51]}  Ba6 {[%clk 0:02:08]} 21. Nxf7 {[%clk 0:00:31]}  Kxf7 {[%clk 0:02:09]} 22. Bxc6+ {[%clk 0:00:31]}  Ke7 {[%clk 0:02:09]} 23. Bxa8 {[%clk 0:00:30]}  Nxa8 {[%clk 0:02:10]} 24. Rc3 {[%clk 0:00:24]}  Nb6 {[%clk 0:02:10]} 25. Rf4 {[%clk 0:00:20]}  Bb5 {[%clk 0:02:07]} 26. h3 {[%clk 0:00:18]}  Nd5 {[%clk 0:02:06]} 27. Rfxc4 {[%clk 0:00:08]}  Bxc4 {[%clk 0:02:07]} 28. Rxc4 {[%clk 0:00:08]}  Rxe3 {[%clk 0:02:05]} 29. Ra4 {[%clk 0:00:09]}  Re2 {[%clk 0:02:06]} 30. Rxa7+ {[%clk 0:00:09]}  Kf6 {[%clk 0:02:06]} 31. b3 {[%clk 0:00:08]}  Ne3 {[%clk 0:02:05]} 32. Ra6+ {[%clk 0:00:07]}  Kg5 {[%clk 0:02:04]} 33. Ra5+ {[%clk 0:00:07]}  Kf4 {[%clk 0:02:04]} 34. Ra4+ {[%clk 0:00:07]}  Kg3 {[%clk 0:02:03]} 35. Kh1 {[%clk 0:00:08]}  Re1# {[%clk 0:02:03]} 0-1


[Site "https://www.chess.com"]

[Event "Titled Tuesday Blitz February 21 Early 2023"]
[White "Martic, Ivan"]
[Black "Liyanage, Ranindu Dilshan"]
[WhiteFideId "929301"]
[BlackFideId "9915834"]
[WhiteElo "2301"]
[BlackElo "2342"]
[Result "0-1"]
[Round "07"]
[TimeControl "180+2"]
[Date "2023.02.21"]
[WhiteClock "0:00:26"]
[BlackClock "0:00:04"]

1. e4 {[%clk 0:03:00]}  e5 {[%clk 0:02:59]} 2. Nf3 {[%clk 0:03:00]}  Nc6 {[%clk 0:03:00]} 3. d3 {[%clk 0:03:00]}  Nf6 {[%clk 0:02:56]} 4. c3 {[%clk 0:03:00]}  d5 {[%clk 0:02:55]} 5. Nbd2 {[%clk 0:03:00]}  a5 {[%clk 0:02:52]} 6. Be2 {[%clk 0:03:00]}  Bc5 {[%clk 0:02:52]} 7. O-O {[%clk 0:02:59]}  O-O {[%clk 0:02:48]} 8. b3 {[%clk 0:02:59]}  h6 {[%clk 0:02:46]} 9. a3 {[%clk 0:02:59]}  Be6 {[%clk 0:02:43]} 10. Bb2 {[%clk 0:02:59]}  d4 {[%clk 0:02:11]} 11. Qc2 {[%clk 0:02:49]}  Ba7 {[%clk 0:02:08]} 12. Rac1 {[%clk 0:02:45]}  Qe7 {[%clk 0:01:59]} 13. cxd4 {[%clk 0:02:42]}  exd4 {[%clk 0:02:00]} 14. Nc4 {[%clk 0:02:34]}  Nd7 {[%clk 0:01:55]} 15. g3 {[%clk 0:02:22]}  Rad8 {[%clk 0:01:55]} 16. Nh4 {[%clk 0:02:21]}  Nc5 {[%clk 0:01:22]} 17. Kh1 {[%clk 0:02:06]}  Bh3 {[%clk 0:01:20]} 18. Rfe1 {[%clk 0:01:57]}  Rfe8 {[%clk 0:01:15]} 19. Bf1 {[%clk 0:01:53]}  Bg4 {[%clk 0:01:12]} 20. f3 {[%clk 0:01:51]}  Be6 {[%clk 0:01:11]} 21. f4 {[%clk 0:01:49]}  f5 {[%clk 0:01:07]} 22. e5 {[%clk 0:01:30]}  g5 {[%clk 0:01:05]} 23. Nf3 {[%clk 0:01:28]}  Bd5 {[%clk 0:00:56]} 24. Bg2 {[%clk 0:01:27]}  Ne6 {[%clk 0:00:57]} 25. Qd2 {[%clk 0:01:04]}  Kh7 {[%clk 0:00:56]} 26. Nxa5 {[%clk 0:01:00]}  Nxa5 {[%clk 0:00:50]} 27. Qxa5 {[%clk 0:01:01]}  Bb6 {[%clk 0:00:49]} 28. Qd2 {[%clk 0:00:59]}  gxf4 {[%clk 0:00:46]} 29. gxf4 {[%clk 0:00:59]}  Rg8 {[%clk 0:00:47]} 30. Rg1 {[%clk 0:00:55]}  Rg4 {[%clk 0:00:46]} 31. Rcf1 {[%clk 0:00:42]}  Rdg8 {[%clk 0:00:45]} 32. Qf2 {[%clk 0:00:40]}  Nxf4 {[%clk 0:00:40]} 33. Ne1 {[%clk 0:00:28]}  Nxg2 {[%clk 0:00:16]} 34. Qxf5+ {[%clk 0:00:27]}  R8g6 {[%clk 0:00:07]} 35. Nf3 {[%clk 0:00:27]}  Ne3 {[%clk 0:00:04]} 36. Qf4 {[%clk 0:00:26]}  Rxf4 {[%clk 0:00:04]} 0-1


[Site "https://www.chess.com"]

[Event "Titled Tuesday Blitz February 21 Early 2023"]
[White "Hasangatin, Ramil"]
[Black "Abdilkhair, Abilmansur"]
[WhiteFideId "4122160"]
[BlackFideId "13716417"]
[WhiteElo "2457"]
[BlackElo "2268"]
[Result "1-0"]
[Round "07"]
[TimeControl "180+2"]
[Date "2023.02.21"]
[WhiteClock "0:00:38"]
[BlackClock "0:00:03"]

1. e4 {[%clk 0:03:00]}  e5 {[%clk 0:02:59]} 2. Nf3 {[%clk 0:03:01]}  Nc6 {[%clk 0:03:00]} 3. Bb5 {[%clk 0:03:01]}  a6 {[%clk 0:03:00]} 4. Ba4 {[%clk 0:03:02]}  Nf6 {[%clk 0:02:59]} 5. Bxc6 {[%clk 0:03:02]}  dxc6 {[%clk 0:02:57]} 6. d3 {[%clk 0:03:02]}  Bd6 {[%clk 0:02:50]} 7. Bg5 {[%clk 0:03:01]}  h6 {[%clk 0:02:49]} 8. Bh4 {[%clk 0:03:00]}  Be6 {[%clk 0:02:44]} 9. Nbd2 {[%clk 0:02:58]}  g5 {[%clk 0:02:43]} 10. Bg3 {[%clk 0:02:57]}  Nd7 {[%clk 0:02:44]} 11. Nc4 {[%clk 0:02:57]}  Qe7 {[%clk 0:02:17]} 12. Nfxe5 {[%clk 0:02:46]}  Bxe5 {[%clk 0:02:07]} 13. Nxe5 {[%clk 0:02:43]}  Qb4+ {[%clk 0:02:05]} 14. Ke2 {[%clk 0:02:25]}  O-O-O {[%clk 0:01:36]} 15. Nxd7 {[%clk 0:02:22]}  Rxd7 {[%clk 0:01:36]} 16. Be5 {[%clk 0:02:21]}  Re8 {[%clk 0:01:35]} 17. Bc3 {[%clk 0:02:21]}  Qd6 {[%clk 0:01:28]} 18. f3 {[%clk 0:02:18]}  f5 {[%clk 0:01:27]} 19. e5 {[%clk 0:01:59]}  Bd5 {[%clk 0:01:09]} 20. Qg1 {[%clk 0:01:47]}  Kb8 {[%clk 0:00:56]} 21. Re1 {[%clk 0:01:42]}  g4 {[%clk 0:00:41]} 22. b3 {[%clk 0:01:38]}  Qg6 {[%clk 0:00:25]} 23. Qf2 {[%clk 0:01:30]}  b6 {[%clk 0:00:22]} 24. Kd2 {[%clk 0:01:25]}  Qh5 {[%clk 0:00:19]} 25. f4 {[%clk 0:01:24]}  c5 {[%clk 0:00:19]} 26. Kc1 {[%clk 0:01:23]}  Be6 {[%clk 0:00:16]} 27. Kb2 {[%clk 0:01:22]}  Qf7 {[%clk 0:00:16]} 28. h3 {[%clk 0:01:20]}  h5 {[%clk 0:00:16]} 29. hxg4 {[%clk 0:01:21]}  hxg4 {[%clk 0:00:17]} 30. Rh6 {[%clk 0:01:18]}  a5 {[%clk 0:00:16]} 31. a4 {[%clk 0:01:16]}  Ka7 {[%clk 0:00:16]} 32. Reh1 {[%clk 0:01:15]}  Rg8 {[%clk 0:00:14]} 33. Qh4 {[%clk 0:01:12]}  Rg6 {[%clk 0:00:13]} 34. Rxg6 {[%clk 0:01:02]}  Qxg6 {[%clk 0:00:14]} 35. Qf6 {[%clk 0:01:02]}  Qe8 {[%clk 0:00:12]} 36. Rh6 {[%clk 0:01:01]}  Bd5 {[%clk 0:00:07]} 37. Rh8 {[%clk 0:00:53]}  Qe6 {[%clk 0:00:05]} 38. Qf8 {[%clk 0:00:53]}  Bxg2 {[%clk 0:00:02]} 39. Qb8+ {[%clk 0:00:50]}  Ka6 {[%clk 0:00:03]} 40. Bxa5 {[%clk 0:00:38]} 1-0


[Site "https://www.chess.com"]

[Event "Titled Tuesday Blitz February 21 Early 2023"]
[White "Krzywda, Andrzej"]
[Black "Csonka, Balazs"]
[WhiteFideId "1114565"]
[BlackFideId "742910"]
[WhiteElo "2223"]
[BlackElo "2496"]
[Result "0-1"]
[Round "07"]
[TimeControl "180+2"]
[Date "2023.02.21"]
[WhiteClock "0:00:04"]
[BlackClock "0:00:03"]

1. d4 {[%clk 0:02:59]}  d5 {[%clk 0:02:59]} 2. Bf4 {[%clk 0:02:57]}  h5 {[%clk 0:02:59]} 3. h3 {[%clk 0:02:54]}  c5 {[%clk 0:02:33]} 4. c3 {[%clk 0:02:53]}  cxd4 {[%clk 0:02:27]} 5. cxd4 {[%clk 0:02:53]}  Nc6 {[%clk 0:02:28]} 6. Nc3 {[%clk 0:02:51]}  Nf6 {[%clk 0:02:19]} 7. e3 {[%clk 0:02:51]}  Bf5 {[%clk 0:02:16]} 8. Rc1 {[%clk 0:02:35]}  Rc8 {[%clk 0:02:10]} 9. Nf3 {[%clk 0:02:35]}  e6 {[%clk 0:02:05]} 10. Bd3 {[%clk 0:02:18]}  Bxd3 {[%clk 0:02:03]} 11. Qxd3 {[%clk 0:02:19]}  Bb4 {[%clk 0:02:03]} 12. O-O {[%clk 0:02:18]}  Bxc3 {[%clk 0:01:57]} 13. Rxc3 {[%clk 0:02:17]}  Ne4 {[%clk 0:01:57]} 14. Rcc1 {[%clk 0:02:14]}  g5 {[%clk 0:01:55]} 15. Be5 {[%clk 0:02:12]}  f6 {[%clk 0:01:37]} 16. Bh2 {[%clk 0:02:04]}  Qa5 {[%clk 0:01:24]} 17. a3 {[%clk 0:01:59]}  Qa6 {[%clk 0:00:58]} 18. Qc2 {[%clk 0:01:26]}  Kf7 {[%clk 0:00:48]} 19. Qb3 {[%clk 0:01:11]}  g4 {[%clk 0:00:44]} 20. Nh4 {[%clk 0:00:56]}  Nd2 {[%clk 0:00:32]} 21. Qc2 {[%clk 0:00:55]}  Ne4 {[%clk 0:00:27]} 22. Qd1 {[%clk 0:00:40]}  gxh3 {[%clk 0:00:21]} 23. gxh3 {[%clk 0:00:37]}  Rcg8+ {[%clk 0:00:18]} 24. Kh1 {[%clk 0:00:37]}  f5 {[%clk 0:00:12]} 25. Be5 {[%clk 0:00:33]}  Rh7 {[%clk 0:00:09]} 26. Rc2 {[%clk 0:00:20]}  Qa5 {[%clk 0:00:08]} 27. Rg1 {[%clk 0:00:18]}  Qd8 {[%clk 0:00:08]} 28. Rxg8 {[%clk 0:00:14]}  Qxg8 {[%clk 0:00:09]} 29. Qg1 {[%clk 0:00:14]}  Qxg1+ {[%clk 0:00:06]} 30. Kxg1 {[%clk 0:00:14]}  Ke8 {[%clk 0:00:06]} 31. f3 {[%clk 0:00:13]}  Ng5 {[%clk 0:00:05]} 32. Kg2 {[%clk 0:00:13]}  Nf7 {[%clk 0:00:05]} 33. Bf4 {[%clk 0:00:13]}  Kd7 {[%clk 0:00:05]} 34. b4 {[%clk 0:00:13]}  a6 {[%clk 0:00:04]} 35. Kh2 {[%clk 0:00:12]}  Nfd8 {[%clk 0:00:03]} 36. Rg2 {[%clk 0:00:12]}  Nf7 {[%clk 0:00:03]} 37. Rg6 {[%clk 0:00:12]}  Nd6 {[%clk 0:00:03]} 38. Rg8 {[%clk 0:00:11]}  Nc4 {[%clk 0:00:02]} 39. a4 {[%clk 0:00:10]}  Nxb4 {[%clk 0:00:02]} 40. Ng6 {[%clk 0:00:11]}  Kc6 {[%clk 0:00:02]} 41. Nf8 {[%clk 0:00:10]}  Re7 {[%clk 0:00:02]} 42. Ng6 {[%clk 0:00:11]}  Rd7 {[%clk 0:00:01]} 43. Rc8+ {[%clk 0:00:08]}  Kb6 {[%clk 0:00:02]} 44. Nf8 {[%clk 0:00:08]}  Rf7 {[%clk 0:00:01]} 45. Nxe6 {[%clk 0:00:08]}  Ka5 {[%clk 0:00:02]} 46. Nc5 {[%clk 0:00:08]}  b6 {[%clk 0:00:03]} 47. Nb7+ {[%clk 0:00:07]}  Kxa4 {[%clk 0:00:03]} 48. Ra8 {[%clk 0:00:08]}  Rxb7 {[%clk 0:00:02]} 49. Kg3 {[%clk 0:00:05]}  b5 {[%clk 0:00:02]} 50. Kh4 {[%clk 0:00:05]}  Nd3 {[%clk 0:00:03]} 51. Bg3 {[%clk 0:00:05]}  b4 {[%clk 0:00:03]} 52. Kxh5 {[%clk 0:00:03]}  a5 {[%clk 0:00:03]} 53. Kg6 {[%clk 0:00:03]}  b3 {[%clk 0:00:04]} 54. Be1 {[%clk 0:00:03]}  b2 {[%clk 0:00:04]} 55. h4 {[%clk 0:00:02]}  b1=Q {[%clk 0:00:04]} 56. h5 {[%clk 0:00:03]}  Nxe1 {[%clk 0:00:05]} 57. h6 {[%clk 0:00:04]}  f4+ {[%clk 0:00:05]} 58. Kf6 {[%clk 0:00:04]}  Qh7 {[%clk 0:00:04]} 59. Rh8 {[%clk 0:00:03]}  Qxh8+ {[%clk 0:00:04]} 60. Kg5 {[%clk 0:00:03]}  Qg8+ {[%clk 0:00:04]} 61. Kxf4 {[%clk 0:00:04]}  Rf7# {[%clk 0:00:03]} 0-1


[Site "https://www.chess.com"]

[Event "Titled Tuesday Blitz February 21 Early 2023"]
[White "Shuvalova, Polina"]
[Black "Corredor Castellanos, Camilo"]
[WhiteFideId "24171760"]
[BlackFideId "4425871"]
[WhiteElo "2484"]
[BlackElo "1957"]
[Result "1-0"]
[Round "07"]
[TimeControl "180+2"]
[Date "2023.02.21"]
[WhiteClock "0:00:08"]
[BlackClock "0:00:24"]

1. d4 {[%clk 0:03:00]}  Nf6 {[%clk 0:02:59]} 2. c4 {[%clk 0:03:01]}  g6 {[%clk 0:02:59]} 3. Nc3 {[%clk 0:03:01]}  Bg7 {[%clk 0:02:59]} 4. e4 {[%clk 0:03:01]}  O-O {[%clk 0:03:00]} 5. Be2 {[%clk 0:03:01]}  d6 {[%clk 0:03:00]} 6. Nf3 {[%clk 0:02:57]}  e5 {[%clk 0:02:57]} 7. d5 {[%clk 0:02:58]}  Nbd7 {[%clk 0:02:56]} 8. Qc2 {[%clk 0:02:43]}  Nh5 {[%clk 0:02:52]} 9. g3 {[%clk 0:02:40]}  a5 {[%clk 0:02:52]} 10. Bg5 {[%clk 0:02:34]}  f6 {[%clk 0:02:30]} 11. Be3 {[%clk 0:02:34]}  Nc5 {[%clk 0:02:25]} 12. Nd2 {[%clk 0:02:32]}  f5 {[%clk 0:02:16]} 13. Bxh5 {[%clk 0:01:44]}  gxh5 {[%clk 0:02:14]} 14. O-O-O {[%clk 0:01:37]}  f4 {[%clk 0:02:11]} 15. Bxc5 {[%clk 0:01:36]}  dxc5 {[%clk 0:02:11]} 16. a4 {[%clk 0:00:54]}  fxg3 {[%clk 0:02:07]} 17. fxg3 {[%clk 0:00:54]}  Bg4 {[%clk 0:02:07]} 18. Rdf1 {[%clk 0:00:53]}  Qg5 {[%clk 0:02:07]} 19. Qd3 {[%clk 0:00:50]}  Bh6 {[%clk 0:02:05]} 20. Kc2 {[%clk 0:00:49]}  Bh3 {[%clk 0:02:05]} 21. Rxf8+ {[%clk 0:00:32]}  Rxf8 {[%clk 0:02:04]} 22. Nd1 {[%clk 0:00:32]}  Rf6 {[%clk 0:01:28]} 23. Re1 {[%clk 0:00:32]}  Kg7 {[%clk 0:01:24]} 24. b3 {[%clk 0:00:25]}  Kf8 {[%clk 0:01:12]} 25. Re3 {[%clk 0:00:20]}  Bg4 {[%clk 0:01:02]} 26. Re1 {[%clk 0:00:18]}  h4 {[%clk 0:00:52]} 27. gxh4 {[%clk 0:00:18]}  Qxh4 {[%clk 0:00:48]} 28. Rg1 {[%clk 0:00:13]}  Ke7 {[%clk 0:00:43]} 29. Qg3 {[%clk 0:00:12]}  Bxd1+ {[%clk 0:00:40]} 30. Kxd1 {[%clk 0:00:11]}  Qxg3 {[%clk 0:00:40]} 31. Rxg3 {[%clk 0:00:11]}  Rf2 {[%clk 0:00:40]} 32. Nf3 {[%clk 0:00:10]}  Kf6 {[%clk 0:00:34]} 33. Rh3 {[%clk 0:00:10]}  Kg7 {[%clk 0:00:32]} 34. Nxe5 {[%clk 0:00:08]}  Bf4 {[%clk 0:00:29]} 35. Nd3 {[%clk 0:00:05]}  Rd2+ {[%clk 0:00:28]} 36. Ke1 {[%clk 0:00:06]}  Bg5 {[%clk 0:00:23]} 37. Rg3 {[%clk 0:00:06]}  Kh6 {[%clk 0:00:23]} 38. e5 {[%clk 0:00:03]}  Rxh2 {[%clk 0:00:21]} 39. Rf3 {[%clk 0:00:02]}  Rh4 {[%clk 0:00:20]} 40. e6 {[%clk 0:00:02]}  Re4+ {[%clk 0:00:20]} 41. Kd1 {[%clk 0:00:03]}  Kg6 {[%clk 0:00:20]} 42. Nf2 {[%clk 0:00:02]}  Re3 {[%clk 0:00:18]} 43. Rxe3 {[%clk 0:00:02]}  Bxe3 {[%clk 0:00:19]} 44. Ne4 {[%clk 0:00:03]}  h5 {[%clk 0:00:18]} 45. Ke2 {[%clk 0:00:03]}  h4 {[%clk 0:00:18]} 46. Kxe3 {[%clk 0:00:03]}  h3 {[%clk 0:00:19]} 47. Nf2 {[%clk 0:00:03]}  h2 {[%clk 0:00:19]} 48. Kf3 {[%clk 0:00:04]}  Kf6 {[%clk 0:00:20]} 49. Kg2 {[%clk 0:00:04]}  b5 {[%clk 0:00:20]} 50. axb5 {[%clk 0:00:04]}  a4 {[%clk 0:00:21]} 51. bxa4 {[%clk 0:00:05]}  Ke7 {[%clk 0:00:21]} 52. Kxh2 {[%clk 0:00:05]}  Kd6 {[%clk 0:00:22]} 53. Kg3 {[%clk 0:00:06]}  Ke7 {[%clk 0:00:23]} 54. Kf3 {[%clk 0:00:07]}  Kd6 {[%clk 0:00:23]} 55. Ke3 {[%clk 0:00:07]}  Ke7 {[%clk 0:00:24]} 56. Ne4 {[%clk 0:00:08]} 1-0


[Site "https://www.chess.com"]

[Event "Titled Tuesday Blitz February 21 Early 2023"]
[White "Narayanan, Srinath"]
[Black "Toktomushev, Teimur"]
[WhiteFideId "5018420"]
[BlackFideId "14176726"]
[WhiteElo "2559"]
[BlackElo "2239"]
[Result "1-0"]
[Round "07"]
[TimeControl "180+2"]
[Date "2023.02.21"]
[WhiteClock "0:00:19"]
[BlackClock "0:00:04"]

1. d4 {[%clk 0:03:00]}  d5 {[%clk 0:02:59]} 2. Nf3 {[%clk 0:03:00]}  Nf6 {[%clk 0:02:59]} 3. Bf4 {[%clk 0:03:00]}  c5 {[%clk 0:02:59]} 4. e3 {[%clk 0:02:59]}  Nc6 {[%clk 0:02:59]} 5. Nbd2 {[%clk 0:03:00]}  Bf5 {[%clk 0:02:58]} 6. Bb5 {[%clk 0:02:59]}  e6 {[%clk 0:02:53]} 7. c3 {[%clk 0:02:57]}  Nd7 {[%clk 0:02:49]} 8. O-O {[%clk 0:02:56]}  Be7 {[%clk 0:02:48]} 9. Re1 {[%clk 0:02:50]}  O-O {[%clk 0:02:46]} 10. Bxc6 {[%clk 0:02:51]}  bxc6 {[%clk 0:02:45]} 11. e4 {[%clk 0:02:51]}  dxe4 {[%clk 0:02:44]} 12. Nxe4 {[%clk 0:02:52]}  Qb6 {[%clk 0:02:15]} 13. Qd2 {[%clk 0:02:19]}  Rad8 {[%clk 0:01:58]} 14. Bd6 {[%clk 0:01:55]}  Rfe8 {[%clk 0:01:29]} 15. Bxe7 {[%clk 0:01:32]}  Rxe7 {[%clk 0:01:28]} 16. Nd6 {[%clk 0:01:33]}  Bg6 {[%clk 0:01:23]} 17. Rad1 {[%clk 0:00:58]}  Nf6 {[%clk 0:01:10]} 18. dxc5 {[%clk 0:00:47]}  Qxc5 {[%clk 0:01:09]} 19. b4 {[%clk 0:00:48]}  Qb6 {[%clk 0:00:54]} 20. Qg5 {[%clk 0:00:47]}  Red7 {[%clk 0:00:48]} 21. Nc4 {[%clk 0:00:45]}  Qa6 {[%clk 0:00:36]} 22. Rxd7 {[%clk 0:00:45]}  Rxd7 {[%clk 0:00:37]} 23. Na5 {[%clk 0:00:45]}  Qd3 {[%clk 0:00:26]} 24. Qe5 {[%clk 0:00:26]}  Ne4 {[%clk 0:00:08]} 25. Nxc6 {[%clk 0:00:20]}  Qxc3 {[%clk 0:00:04]} 26. Qb8+ {[%clk 0:00:19]} 1-0


[Site "https://www.chess.com"]